[Event "Hungarian Youth-ch U16 2022"]
[Site "Eger"]
[Date "2022.07.25"]
[Round "3.4"]
[White "Borzsei, Andras"]
[Black "Onodi, Tamas"]
[Result "1-0"]
[ECO "D10"]
[WhiteElo "2002"]
[BlackElo "2030"]
[Annotator "NA RC"]
[PlyCount "77"]
[EventDate "2022.07.21"]
[EventType "tourn"]
[EventCountry "HUN"]
[SourceTitle "playchess.com"]
[Source "ChessBase"]
[SourceQuality "1"]
[TimeControl "40/5400+30:1800+30"]

1. d4 {[%emt 0:00:35]} d5 {[%emt 0:00:35]} 2. c4 {[%emt 0:00:15]} c6 {[%emt 0:00:02]} 3. e3 {[%emt 0:00:20]} Nf6 {[%emt 0:00:05]} 4. Nc3 {[%emt 0:00:05]} g6 {[%emt 0:00:05]} 5. Nf3 {[%emt 0:04:29]} Bg7 {[%emt 0:00:16]} 6. Be2 {[%emt 0:00:59]} O-O {[%emt 0:00:09]} 7. Bd2 {[%emt 0:03:35]} Be6 {[%emt 0:09:41]} 8. Ng5 {[%emt 0:04:13]} Bf5 {[%emt 0:01:35]} 9. g4 {[%emt 0:01:43]} Bc8 {[%emt 0:05:46]} 10. h4 {[%emt 0:00:43]} h6 {[%emt 0:12:59]} (10... c5 $11) 11. Nh3 $14 {[%emt 0:01:01]} Ne4 {[%emt 0:02:31]} 12. Nxe4 {[%emt 0:21:24]} dxe4 {[%emt 0:00:14]} 13. Qc2 {[%emt 0:00:20]} f5 {[%emt 0:09:33]} 14. Nf4 {[%emt 0:08:41]} Kh7 {[%emt 0:09:58]} 15. O-O-O {[%emt 0:12:41]} c5 {[%emt 0:15:54]} 16. d5 {[%emt 0:08:43]} Qb6 {[%emt 0:02:09]} 17. Bc3 {[%emt 0:02:35]} Rf7 {[%emt 0:11:29]} 18. Rdg1 {[%emt 0:07:32]} fxg4 {[%emt 0:07:44]} 19. Bxg4 {[%emt 0:00:44]} Bxg4 {[%emt 0:00:07]} 20. Rxg4 {[%emt 0:00:23]} Bxc3 {[%emt 0:00:11]} 21. Qxc3 {[%emt 0:00:47]} Rf6 {[%emt 0:01:34]} 22. Qe5 {[%emt 0:02:43]} Qd6 {[%emt 0:00:49]} 23. Qxe4 {[%emt 0:00:28]} Nd7 {[%emt 0:00:24]} 24. Nxg6 {[%emt 0:01:16]} Rxg6 {[%emt 0:00:34]} 25. h5 {[%emt 0:00:08]} Ne5 {[%emt 0:00:07]} 26. hxg6+ {[%emt 0:00:26]} Kg7 {[%emt 0:00:06]} 27. Rgh4 {[%emt 0:02:47]} Rh8 {[%emt 0:00:10]} 28. f4 {[%emt 0:01:22]} Nd7 {[%emt 0:01:51]} 29. Qf5 {[%emt 0:00:13]} Nf6 {[%emt 0:00:16]} 30. Qh3 {[%emt 0:00:59]} h5 {[%emt 0:00:31]} 31. Qf3 {[%emt 0:01:42]} Qa6 {[%emt 0:00:08]} 32. Qe2 {[%emt 0:02:59]} Qxa2 {[%emt 0:01:30]} 33. Qc2 {[%emt 0:00:08]} Qa1+ {[%emt 0:00:56]} 34. Kd2 {[%emt 0:00:08]} Qa5+ {[%emt 0:00:17]} 35. Ke2 {[%emt 0:00:17]} b5 {[%emt 0:00:35]} 36. e4 {[%emt 0:02:12]} bxc4 {[%emt 0:00:37]} 37. e5 {[%emt 0:00:57]} Nxd5 {[%emt 0:00:45]} 38. Qf5 {[%emt 0:00:33]} Rf8 {[%emt 0:01:09]} 39. Qxh5 {[%emt 0:00:06]} 1-0

[Event "Hungarian Youth-ch U16 2022"]
[Site "Eger"]
[Date "2022.07.25"]
[Round "3.5"]
[White "Karacsonyi, Kata"]
[Black "Bodo, Boglarka"]
[Result "1/2-1/2"]
[ECO "C43"]
[WhiteElo "2147"]
[BlackElo "1722"]
[Annotator "TA"]
[PlyCount "71"]
[EventDate "2022.07.21"]
[EventType "tourn"]
[EventCountry "HUN"]
[SourceTitle "playchess.com"]
[Source "ChessBase"]
[SourceQuality "1"]
[TimeControl "40/5400+30:1800+30"]

{[%evp 11,71,6,22,26,44,-18,79,57,56,61,43,56,131,23,39,38,37,16,17,12,31,22,18,15,13,20,21,10,9,0,0,-18,-4,-19,-6,-24,-8,-20,-16,-71,-16,-14,-15,-104,-31,-46,-35,-19,-29,-24,0,0,0,0,0,0,0,0,0,0,0,-2]} 1. e4 {[%emt 0:00:34]} e5 {[%emt 0:00:57]} 2. Nf3 {[%emt 0:00:13]} Nf6 {[%emt 0:00:12]} 3. d4 {[%emt 0:00:25]} Nxe4 {[%emt 0:00:40]} 4. Bd3 {[%emt 0:00:38]} d5 {[%emt 0:01:15]} 5. dxe5 {[%emt 0:00:36]} Be7 {[%emt 0:01:19]} 6. O-O {[%emt 0:00:21]} O-O {[%emt 0:00:55]} 7. c4 {[%emt 0:08:37] [#] aiming for cxd5. C43: Petroff Defence: 3 d4.} c6 {[%emt 0:02:35]} 8. Qc2 {[%emt 0:09:22]} (8. cxd5 $14 cxd5 9. Nc3) 8... f5 {[%emt 0:03:39]} (8... Na6 $11) 9. exf6 {[%emt 0:00:22] White is better.} Nxf6 {[%emt 0:00:15]} 10. Bg5 {[%emt 0:06:41] [#]} h6 $146 {[%emt 0:04:32]} ({Predecessor:} 10... Nbd7 11. cxd5 cxd5 12. Nd4 Ne5 13. Bxf6 Rxf6 14. Bxh7+ Kh8 15. Bd3 Bd6 16. Nd2 Rh6 {1-0 (67) Vehi Bach,V (2331)-Fabrega,E (2131) Barcelona 2019}) 11. Bh4 {[%emt 0:03:41]} Be6 {[%emt 0:02:35]} ({Black should play} 11... Na6 $14) 12. Ne5 {[%emt 0:04:08]} (12. Re1 $16 Bf7 13. Bf5) 12... dxc4 {[%emt 0:04:54]} 13. Bxc4 {[%emt 0:14:26]} Bxc4 {[%emt 0:00:33]} 14. Qxc4+ {[%emt 0:00:25]} Qd5 $1 {[%emt 0:01:33]} 15. Nd2 {[%emt 0:13:04]} Bd8 {[%emt 0:15:34]} 16. Ng6 {[%emt 0:08:24]} Re8 {[%emt 0:01:24]} 17. Rae1 {[%emt 0:02:51] Black must now prevent Rxe8+.} Nbd7 {[%emt 0:06:23]} 18. Rxe8+ {[%emt 0:08:05]} Nxe8 {[%emt 0:00:09]} 19. Ne7+ {[%emt 0:04:38]} Bxe7 {[%emt 0:00:15]} 20. Bxe7 {[%emt 0:00:33]} Nef6 {[%emt 0:01:26]} 21. Bb4 {[%emt 0:04:30]} Re8 {[%emt 0:01:44]} 22. Qb3 {[%emt 0:03:38]} Re2 {[%emt 0:03:08] Strongly threatening ...Qxb3.} 23. Bc3 {[%emt 0:01:22]} Nc5 {[%emt 0:01:53]} 24. Qd1 {[%emt 0:01:04]} (24. Qa3 {is interesting.} Nh5 25. Qb4 Kh7 26. Qg4) 24... Re6 {[%emt 0:03:11]} 25. Nf3 {[%emt 0:01:00]} (25. b3 $11) 25... Nce4 {[%emt 0:03:31]} (25... Qxa2 $17 26. Nd4 Rd6) 26. Qxd5 {[%emt 0:01:13]} Nxd5 {[%emt 0:01:08][%cal Bf6d5,Bd5f4,Bf4e2][%mdl 32] Pair of Knights!} 27. Nd4 {[%emt 0:01:25] [#]} (27. Be5 $11) 27... Re8 {[%emt 0:00:37]} (27... Rd6 $1 $17 28. Ba5 c5) 28. Be1 {[%emt 0:01:08]} ({But not} 28. Re1 Ndxc3 29. bxc3 Kf8 $17) 28... Nf4 {[%emt 0:01:56]} 29. f3 {[%emt 0:00:22]} Nc5 {[%emt 0:00:33]} 30. Bg3 {[%emt 0:01:02]} Ne2+ {[%emt 0:00:22]} 31. Nxe2 {[%emt 0:00:01] The position is equal.} Rxe2 {[%emt 0:00:09]} 32. Rf2 {[%emt 0:00:51]} Re1+ {[%emt 0:00:14]} 33. Rf1 {[%emt 0:00:02]} Re2 {[%emt 0:00:13]} 34. Rf2 {[%emt 0:00:29]} Re1+ {[%emt 0:00:13]} 35. Rf1 {[%emt 0:00:02]} Re2 {[%emt 0:00:08]} 36. Rf2 {[%emt 0:01:33] Weighted Error Value: White=0.25 (precise) /Black=0.24 (precise)} 1/2-1/2

[Event "Hungarian Youth-ch U16 2022"]
[Site "Eger"]
[Date "2022.07.25"]
[Round "3.6"]
[White "Buri, Petra Zsuzsanna"]
[Black "Kovacs, Veronika"]
[Result "1/2-1/2"]
[ECO "B11"]
[WhiteElo "1784"]
[BlackElo "1633"]
[Annotator "NA RC COMBH"]
[PlyCount "66"]
[EventDate "2022.07.21"]
[EventType "tourn"]
[EventCountry "HUN"]
[SourceTitle "playchess.com"]
[Source "ChessBase"]
[SourceQuality "1"]
[TimeControl "40/5400+30:1800+30"]

1. e4 {[%emt 0:01:23]} c6 {[%emt 0:00:34]} 2. Nf3 {[%emt 0:00:49]} d5 {[%emt 0:00:06]} 3. Nc3 {[%emt 0:00:39]} Bg4 {[%emt 0:00:07]} 4. h3 {[%emt 0:01:52]} Bxf3 {[%emt 0:00:04]} 5. Qxf3 {[%emt 0:02:31]} Nf6 {[%emt 0:00:22]} 6. e5 {[%emt 0:02:21]} Nfd7 {[%emt 0:00:19]} 7. d4 {[%emt 0:02:31]} e6 {[%emt 0:00:22]} 8. Bd3 {[%emt 0:11:09]} c5 {[%emt 0:01:30]} 9. dxc5 {[%emt 0:06:56]} Nxe5 {[%emt 0:07:04]} 10. Bb5+ {[%emt 0:04:16]} Nbc6 {[%emt 0:02:08]} 11. Qe2 {[%emt 0:04:13]} Ng6 {[%emt 0:10:46]} 12. b4 {[%emt 0:03:41]} Be7 {[%emt 0:02:19]} 13. Bb2 {[%emt 0:05:01]} O-O {[%emt 0:01:28]} 14. Bxc6 {[%emt 0:00:37]} bxc6 {[%emt 0:00:09]} 15. O-O {[%emt 0:01:19]} Rb8 {[%emt 0:00:55]} 16. a3 {[%emt 0:05:35]} Bxc5 {[%emt 0:02:32]} 17. Na4 {[%emt 0:06:27]} Be7 {[%emt 0:05:21]} 18. Bd4 {[%emt 0:03:09]} Bf6 {[%emt 0:03:55]} 19. Rfd1 {[%emt 0:03:02]} e5 {[%emt 0:10:00]} 20. Bc5 {[%emt 0:06:15]} Re8 {[%emt 0:03:40]} 21. Nc3 {[%emt 0:02:15]} Qc7 {[%emt 0:06:57]} 22. Qa6 {[%emt 0:04:19]} e4 {[%emt 0:05:01]} 23. Bd4 {[%emt 0:04:24]} Bxd4 {[%emt 0:00:26]} 24. Rxd4 {[%emt 0:00:07]} e3 {[%emt 0:02:00]} 25. Ne2 {[%emt 0:03:45]} Qe5 {[%emt 0:07:10]} 26. Rf1 {[%emt 0:01:37]} exf2+ {[%emt 0:07:09]} 27. Rxf2 {[%emt 0:00:26]} c5 {[%emt 0:01:16]} 28. Rd1 {[%emt 0:02:27]} cxb4 {[%emt 0:03:26]} 29. Qxa7 {[%emt 0:02:39]} Re7 {[%emt 0:01:10]} 30. Qa5 {[%emt 0:00:37]} bxa3 {[%emt 0:01:40]} 31. Qxa3 {[%emt 0:00:19]} Rb2 {[%emt 0:03:13]} 32. Nc3 {[%emt 0:03:16]} Reb7 {[%emt 0:04:13]} 33. Qa5 {[%emt 0:02:38]} h6 {[%emt 0:02:58]} 1/2-1/2

[Event "Hungarian Youth-ch U16 2022"]
[Site "Eger"]
[Date "2022.07.25"]
[Round "3.7"]
[White "Sipos, Stefania"]
[Black "Harkai, Emma"]
[Result "1/2-1/2"]
[ECO "C44"]
[WhiteElo "1802"]
[BlackElo "1761"]
[Annotator "NA RC COMBH"]
[PlyCount "84"]
[EventDate "2022.07.21"]
[EventType "tourn"]
[EventCountry "HUN"]
[SourceTitle "playchess.com"]
[Source "ChessBase"]
[SourceQuality "1"]
[TimeControl "40/5400+30:1800+30"]

1. e4 {[%emt 0:00:33]} e5 {[%emt 0:00:43]} 2. Nf3 {[%emt 0:00:06]} Nc6 {[%emt 0:00:08]} 3. d4 {[%emt 0:00:14]} exd4 {[%emt 0:02:05]} 4. Nxd4 {[%emt 0:00:10]} Nxd4 {[%emt 0:06:26]} 5. Qxd4 {[%emt 0:00:11]} d6 {[%emt 0:00:52]} 6. Nc3 {[%emt 0:01:24]} Nf6 {[%emt 0:03:48]} 7. Bg5 {[%emt 0:06:03]} Be7 {[%emt 0:01:45]} 8. O-O-O {[%emt 0:05:09]} O-O {[%emt 0:12:39]} 9. e5 {[%emt 0:13:20]} Ng4 {[%emt 0:08:10]} 10. Bxe7 {[%emt 0:05:37]} Qxe7 {[%emt 0:00:43]} 11. exd6 {[%emt 0:07:54]} cxd6 {[%emt 0:00:37]} 12. h3 {[%emt 0:02:03]} Nf6 {[%emt 0:07:34]} 13. Qxd6 {[%emt 0:01:16]} Qxd6 {[%emt 0:01:16]} 14. Rxd6 {[%emt 0:00:08]} Be6 {[%emt 0:02:04]} 15. Bb5 {[%emt 0:05:55]} a6 {[%emt 0:07:27]} 16. Be2 {[%emt 0:01:51]} Rab8 {[%emt 0:11:26]} 17. Rhd1 {[%emt 0:10:49]} Rfc8 {[%emt 0:07:00]} 18. Bf3 {[%emt 0:06:58]} Kf8 {[%emt 0:02:44]} 19. Rb6 {[%emt 0:03:31]} Rc7 {[%emt 0:01:55]} 20. Rdd6 {[%emt 0:09:13]} Ke7 {[%emt 0:08:04]} 21. Rd3 {[%emt 0:04:25]} Nd7 {[%emt 0:04:19]} 22. Rb4 {[%emt 0:01:19]} b5 {[%emt 0:04:14]} 23. Re3 {[%emt 0:03:17]} Kf8 {[%emt 0:01:12]} 24. Rf4 {[%emt 0:03:11]} g5 {[%emt 0:01:55]} 25. Rd4 {[%emt 0:01:46]} Nb6 {[%emt 0:00:51]} 26. Red3 {[%emt 0:01:33]} Ke7 {[%emt 0:01:30]} 27. h4 {[%emt 0:01:48]} h6 {[%emt 0:00:29]} 28. g3 {[%emt 0:01:06]} Nd7 {[%emt 0:01:01]} 29. a3 {[%emt 0:01:59]} Rbc8 {[%emt 0:00:40]} 30. Rd6 {[%emt 0:01:23]} Ne5 {[%emt 0:00:19]} 31. Rxa6 {[%emt 0:01:02]} Nxd3+ {[%emt 0:00:10]} 32. cxd3 {[%emt 0:00:06]} g4 {[%emt 0:00:40]} 33. Be4 {[%emt 0:00:30]} f5 {[%emt 0:00:34]} 34. Bg2 {[%emt 0:00:20]} Rb8 {[%emt 0:00:34]} 35. Ra5 {[%emt 0:00:45]} b4 {[%emt 0:00:43]} 36. axb4 {[%emt 0:00:12]} Rxb4 {[%emt 0:00:07]} 37. Kc2 {[%emt 0:00:56]} Rc8 {[%emt 0:00:49]} 38. Ra7+ {[%emt 0:00:44]} Kf6 {[%emt 0:00:20]} 39. Ra6 {[%emt 0:00:12]} Kf7 {[%emt 0:00:50]} 40. Ra7+ {[%emt 0:00:00]} Kf6 {[%emt 0:00:00]} 41. Ra6 {[%emt 0:01:07]} Kf7 {[%emt 0:10:23]} 42. Ra7+ {[%emt 0:04:37]} Kf6 {[%emt 0:16:22]} 1/2-1/2

[Event "Hungarian Youth-ch U16 2022"]
[Site "Eger"]
[Date "2022.07.26"]
[Round "4.1"]
[White "Onodi, Tamas"]
[Black "Kocsmar, Akos"]
[Result "1/2-1/2"]
[ECO "B22"]
[WhiteElo "2030"]
[BlackElo "2061"]
[Annotator "TA"]
[PlyCount "97"]
[EventDate "2022.07.21"]
[EventType "tourn"]
[EventCountry "HUN"]
[SourceTitle "playchess.com"]
[Source "ChessBase"]
[SourceQuality "1"]
[TimeControl "40/5400+30:1800+30"]

{[%evp 9,97,14,29,17,106,105,97,98,160,106,379,382,380,305,248,243,244,272,594,111,114,101,107,110,114,113,100,95,172,129,136,140,300,226,376,377,337,352,685,413,404,403,393,232,231,231,231,231,427,222,322,329,313,232,460,216,217,220,198,108,111,90,131,110,294,295,253,75,91,0,0,-33,-29,-27,-22,-25,0,-10,-17,-14,0,0,0,-46,-14,-14,-14,-18,266,-503]} 1. e4 {[%emt 0:00:32]} c5 {[%emt 0:00:47]} 2. c3 {[%emt 0:00:04]} d5 {[%emt 0:00:45]} 3. exd5 {[%emt 0:00:09]} Qxd5 {[%emt 0:00:02]} 4. Nf3 {[%emt 0:00:11]} Nc6 {[%emt 0:00:18]} 5. d4 {[%emt 0:00:11]} Bf5 {[%emt 0:02:02]} 6. Be2 {[%emt 0:04:39] B22: Sicilian: 2 c3.} Bxb1 {[%emt 0:05:14]} (6... cxd4 $11 7. cxd4 Bxb1 8. Rxb1 e6) 7. Rxb1 $16 {[%emt 0:03:06]} cxd4 {[%emt 0:00:34]} 8. Nxd4 {[%emt 0:23:03] [#] White is better.} O-O-O $146 {[%emt 0:16:46]} (8... Qxg2 $142 9. Bf3 Qg6) ({Predecessor:} 8... Qxg2 9. Bf3 Qg6 10. Qa4 Rc8 11. Ke2 e5 12. Nxc6 bxc6 13. Be3 f5 14. Qa6 Rc7 {½-½ (58) Acs,P (2586)-Mista,A (2543) Germany 2013}) 9. Bf3 {[%emt 0:09:49]} ({White should try} 9. O-O) 9... Qxa2 $2 {[%emt 0:01:28][%mdl 8192]} (9... Qc4 $16) 10. Qc2 $18 {[%emt 0:00:18]} Nf6 {[%emt 0:11:02]} 11. O-O {[%emt 0:29:42]} Ne5 {[%emt 0:03:25]} 12. Be3 {[%emt 0:02:09]} ({Don't take} 12. Bf4 $6 Nxf3+ 13. Nxf3 Qc4) 12... Nxf3+ {[%emt 0:10:01]} 13. Nxf3 {[%emt 0:00:05]} a6 $2 {[%emt 0:00:28]} (13... Qc4 {is more resistant.} 14. Bxa7 e6) 14. Rbd1 $2 {[%emt 0:03:23]} (14. c4 $18) 14... Rxd1 {[%emt 0:02:42]} 15. Rxd1 {[%emt 0:00:10]} e6 {[%emt 0:01:31]} 16. Ne5 {[%emt 0:07:38]} Be7 {[%emt 0:04:31]} 17. Nxf7 $40 {[%emt 0:01:02][%mdl 128] White has strong attack.} Rf8 {[%emt 0:00:01]} 18. Ne5 {[%emt 0:01:39][%cal Bf7e5,Be5c4,Bc4b6,Bb6d7,Bd7c5][%mdl 32] White is much more active.} Nd5 {[%emt 0:01:51]} (18... Rd8 $16) 19. Bd4 {[%emt 0:02:44]} g6 {[%emt 0:02:41]} 20. g3 {[%emt 0:00:58] c4 is the strong threat.} Bf6 $2 {[%emt 0:03:48]} (20... Rd8 $16 21. Re1 Bf6) 21. Qe2 {[%emt 0:00:16]} Nc7 {[%emt 0:13:16]} (21... Qa4 $142 22. Nxg6 hxg6) 22. Nc4 {[%emt 0:02:26]} Bxd4 {[%emt 0:01:31]} 23. Rxd4 {[%emt 0:00:02] [#] aiming for Nb6+.} (23. cxd4 Qb3 $11) 23... b5 $2 {[%emt 0:01:09]} (23... Kb8 24. Kg2 Qb3) 24. Nb6+ {[%emt 0:01:17]} Kb7 {[%emt 0:00:10]} 25. Nd7 {[%emt 0:00:18]} Rf5 {[%emt 0:00:54][%cal Bf8f5,Bf5d5,Bd5d1][%mdl 32]} 26. Qe4+ {[%emt 0:01:37]} (26. Ne5 $142) 26... Rd5 {[%emt 0:04:23]} 27. c4 {[%emt 0:02:35]} bxc4 {[%emt 0:00:35]} 28. Rxc4 {[%emt 0:00:01]} Qa5 {[%emt 0:01:21]} (28... Qxc4 29. Qxc4 Rxd7 30. Qb4+ Kc8) 29. Nc5+ {[%emt 0:01:04]} (29. Nf6 $142) 29... Kb8 {[%emt 0:02:15] [#]} (29... Ka7 {is a better defense.} 30. Nd3 (30. Nxe6 Nxe6 31. Qxe6 Rd1+ 32. Kg2 Qb6 $18) 30... Qb6) 30. Qf4 $1 {[%emt 0:02:41] Hoping for Rb4+.} Ka7 {[%emt 0:03:34]} 31. b4 {[%emt 0:00:50]} Rd1+ {[%emt 0:01:59]} 32. Kg2 {[%emt 0:00:02]} Qb6 {[%emt 0:00:04]} 33. Qf3 {[%emt 0:01:23]} Rd6 {[%emt 0:01:13]} 34. Rf4 {[%emt 0:00:33]} ({White should play} 34. Qc3 $18) 34... Qc6 $16 {[%emt 0:00:51]} 35. Rf7 {[%emt 0:00:19]} Kb6 {[%emt 0:00:50]} 36. Rxh7 {[%emt 0:00:16]} Rd1 $2 {[%emt 0:01:20]} (36... Qxf3+ $16 {was worth a try.} 37. Kxf3 Nd5) 37. Qxc6+ $18 {[%emt 0:00:23]} Kxc6 {[%emt 0:00:01][%mdl 4096] Endgame KRN-KRN} 38. Rh4 $2 {[%emt 0:01:20]} (38. h4 $18 {has better winning chances.}) 38... Kb5 $16 {[%emt 0:00:54]} 39. Ne4 {[%emt 0:00:25]} (39. Nb7 $16) 39... Kxb4 $11 {[%emt 0:00:16]} 40. Kf3 {[%emt 0:00:00]} Rd4 {[%emt 0:00:00]} 41. Rh8 {[%emt 0:10:16]} a5 {[%emt 0:03:55] And now ...a4 would win.} 42. Ke3 {[%emt 0:00:02]} Rd5 {[%emt 0:00:44]} 43. Rc8 {[%emt 0:02:43]} Nb5 {[%emt 0:00:35]} 44. Nd2 {[%emt 0:01:47]} a4 {[%emt 0:04:10]} 45. Rc4+ $1 {[%emt 0:00:28]} Ka3 {[%emt 0:00:34]} 46. g4 {[%emt 0:03:13]} (46. f4 $11) 46... Nd6 {[%emt 0:02:43]} 47. Nb1+ $1 {[%emt 0:04:21]} Kb3 {[%emt 0:03:31]} 48. Rxa4 {[%emt 0:01:46]} Nb5 {[%mdl 8192] Inhibits Rd4.} (48... Nc4+ $11 {and Black stays safe.} 49. Rxc4 Kxc4 50. Nd2+ Kc5) 49. Nd2+ $4 {[%mdl 40960] White really could win this.  Weighted Error Value: White=0.54/Black=0.60. An unexpected result.} (49. Ra6 $18 {avoids the disaster.}) 1/2-1/2

[Event "Hungarian Youth-ch U16 2022"]
[Site "Eger"]
[Date "2022.07.26"]
[Round "4.2"]
[White "Pasztor, Balazs"]
[Black "Borzsei, Andras"]
[Result "1-0"]
[ECO "B44"]
[WhiteElo "2336"]
[BlackElo "2002"]
[Annotator "TA"]
[PlyCount "105"]
[EventDate "2022.07.21"]
[EventType "tourn"]
[EventCountry "HUN"]
[SourceTitle "playchess.com"]
[Source "ChessBase"]
[SourceQuality "1"]
[TimeControl "40/5400+30:1800+30"]

{[%evp 9,105,11,11,5,5,3,13,8,2,0,0,0,24,23,21,32,22,22,33,26,35,31,46,43,46,45,83,79,81,77,68,77,76,83,87,56,75,67,71,54,84,81,79,80,81,71,119,83,88,87,96,97,70,97,82,74,93,89,110,126,197,206,203,195,234,258,267,251,416,393,386,387,903,891,810,726,708,712,1798,1512,2433,2052,2052,1988,1548,1424,29971,29972,29970,29968,29975,29973,29967,29970,29983,29984,29984,29985]} 1. e4 {[%emt 0:01:40]} c5 {[%emt 0:00:44]} 2. Nf3 {[%emt 0:00:07]} e6 {[%emt 0:00:07]} 3. d4 {[%emt 0:00:05]} cxd4 {[%emt 0:00:05]} 4. Nxd4 {[%emt 0:00:06]} Nc6 {[%emt 0:00:03]} 5. Bf4 {[%emt 0:00:23]} d6 {[%emt 0:00:46]} 6. Nxc6 {[%emt 0:00:07] B44: Sicilian: Taimanov: 5 Nb5.} bxc6 {[%emt 0:00:07]} 7. c4 {[%emt 0:00:07]} Rb8 {[%emt 0:01:01]} 8. Qc2 {[%emt 0:00:09] The position is equal.} e5 {[%emt 0:00:23]} 9. Be3 {[%emt 0:00:59]} Nf6 {[%emt 0:00:28]} 10. Nc3 {[%emt 0:01:01]} Qc7 {[%emt 0:02:17]} (10... Ng4 $5 {[%cal Rg4e3]}) 11. Be2 {[%emt 0:00:32]} Be7 {[%emt 0:00:18]} 12. O-O {[%emt 0:00:10]} O-O {[%emt 0:00:14][%cal Od6d5]} 13. Rac1 {[%emt 0:00:23]} Be6 {[%emt 0:00:59]} 14. b3 {[%emt 0:00:26]} h6 {[%emt 0:00:59]} 15. h3 {[%emt 0:01:52]} a5 {[%emt 0:00:40]} 16. Rfd1 {[%emt 0:03:38]} Rfd8 {[%emt 0:00:24] [#]} 17. Bd2 $146 {[%emt 0:13:16]} ({Predecessor:} 17. Bf3 Nh7 18. Qe2 Bg5 19. Rd3 Qe7 20. Rcd1 Rd7 21. Bd2 Bxd2 22. Qxd2 Ng5 23. Be2 {½-½ (62) Rapport,R (2763)-Caruana,F (2806) Saint Louis 2021}) 17... Nd7 {[%emt 0:22:59] [#]} 18. Nd5 $1 {[%emt 0:13:58]} cxd5 {[%emt 0:07:06]} 19. cxd5 {[%emt 0:01:41]} (19. exd5 Bxh3 20. gxh3 Bg5 $11) 19... Qxc2 {[%emt 0:04:48]} 20. Rxc2 {[%emt 0:00:02]} Bxd5 {[%emt 0:00:21]} 21. exd5 {[%emt 0:00:05]} Ra8 {[%emt 0:01:30]} 22. g3 {[%emt 0:17:51]} Bg5 {[%emt 0:07:07]} 23. f4 {[%emt 0:05:08]} Bf6 {[%emt 0:09:46]} 24. Be3 {[%emt 0:04:50]} Kf8 {[%emt 0:08:04]} 25. Bb5 {[%emt 0:04:32]} Rab8 {[%emt 0:08:33]} 26. Bc6 {[%emt 0:05:38] 0x0.00198892eb55dp-1022s more active pieces.} exf4 {[%emt 0:04:14]} 27. gxf4 {[%emt 0:01:25]} Rb4 {[%emt 0:03:39]} (27... Rdc8 $142) 28. Re1 {[%emt 0:06:20]} Re4 {[%emt 0:03:56]} 29. Bd2 {[%emt 0:05:12][%csl LRa5,LRe4] A strong pair of Bishops.} Bd4+ {[%emt 0:04:28]} 30. Kg2 {[%emt 0:00:12]} Rxe1 {[%emt 0:00:52]} 31. Bxe1 {[%emt 0:00:02]} Bb6 {[%emt 0:01:31]} 32. Bxd7 {[%emt 0:05:34]} Rxd7 $16 {[%emt 0:00:01][%mdl 4096] Endgame KRB-KRB} 33. Rc6 {[%emt 0:00:52]} Rb7 {[%emt 0:00:12]} 34. Rxd6 {[%emt 0:02:00]} Bc5 {[%emt 0:00:47] [#]} (34... Bc7 $16 {is a better defense.} 35. Ra6 (35. Rd7 $2 Ke8 $19) 35... Bxf4) 35. Ra6 $1 $18 {[%emt 0:00:51]} Bb4 {[%emt 0:00:13]} 36. Bxb4+ {[%emt 0:01:53]} axb4 {[%emt 0:00:27] KR-KR} 37. Kf3 {[%emt 0:00:21]} Rc7 {[%emt 0:01:41]} 38. Ke4 {[%emt 0:01:10] Strongly threatening d6.} Rc1 $2 {[%emt 0:03:20]} (38... Ke8 39. Ra4 Rb7) 39. d6 {[%emt 0:01:58] Intending Ra8+ and mate.} Ke8 {[%emt 0:01:01]} 40. Kd5 {[%emt 0:00:00]} ({Weaker is} 40. Ra7 Re1+ 41. Kd5 g5 42. fxg5 hxg5 $18) 40... g5 $2 {[%emt 0:00:00]} (40... g6 41. Ra8+ Kd7 42. Ra7+ Ke8 43. Re7+ Kd8 44. Rxf7 Rd1+ 45. Kc5 Rd2) 41. Ra8+ {[%emt 0:04:00]} Kd7 {[%emt 0:02:30]} 42. Ra7+ {[%emt 0:00:08]} Ke8 {[%emt 0:00:28]} 43. f5 {[%emt 0:04:15] Hoping for Re7+.} Rd1+ {[%emt 0:02:59]} 44. Ke5 {[%emt 0:02:32]} h5 {[%emt 0:03:17]} 45. Re7+ {[%emt 0:01:41]} Kd8 {[%emt 0:06:52]} 46. Rxf7 {[%emt 0:00:53]} Re1+ {[%emt 0:00:08]} 47. Kf6 {[%emt 0:01:37]} g4 {[%emt 0:00:13]} 48. hxg4 {[%emt 0:00:36] White mates.} hxg4 {[%emt 0:00:08]} 49. Rg7 {[%emt 0:00:41]} Rg1 {[%emt 0:00:21]} 50. Ke6 {[%emt 0:00:19][%cal Rg7g8]} Re1+ {[%emt 0:00:18]} 51. Kf7 {[%emt 0:00:26]} Re4 {[%emt 0:04:20]} 52. f6 {[%emt 0:00:07]} Kd7 {[%emt 0:00:39]} 53. Kg8+ {[%emt 0:00:29] Weighted Error Value: White=0.03 (flawless) /Black=0.36} 1-0